Cogmind - Beta 16.1 @@@ ROGUE MODE // 2026.03.22 @ 09:45:44 Player: 3.14 Result: Self-destructed Performance ------------- Evolutions (1) 500 Regions Visited (2) 400 Robots Destroyed (24) 120 Value Destroyed (668) 668 Prototype IDs (0) 0 Alien Tech Used (0) 0 Bonus (0) 0 TOTAL SCORE: 1688 Bonus ------- None Cogmind --------- Core Integrity 301/400 Matter 200/300 Energy 100/100 System Corruption 0% Temperature Cool (0) Movement Treading (320) Ox2 Location -9/Materials Parts ------- > --- POWER (1) -------- (None) > --- PROPULSION (3) --- Light Treads > --- UTILITY (3) ------ Improved Heat Sink High-capacity Storage Unit > --- WEAPON (2) ------- Assault Rifle Assault Rifle > --- INVENTORY (20) --- Light Ion Engine Aluminum Leg Aluminum Leg Aluminum Leg Heat Sink Huge Storage Unit Small Laser Small Laser Small Laser Particle Gun Particle Gun Assault Rifle Assault Rifle Assault Rifle Peak State ------------ > --- POWER ------------ Ion Engine > --- PROPULSION ------- Light Treads Light Treads > --- UTILITY ---------- Improved Heat Sink High-capacity Storage Unit > --- WEAPON ----------- Particle Gun Assault Rifle > --- INVENTORY -------- Light Ion Engine Aluminum Leg Aluminum Leg Small Laser Small Laser Small Laser Particle Gun Assault Rifle Assault Rifle [Rating: 11] Favorites ----------- Power Ion Engine Engine Ion Engine Propulsion Light Treads Treads Light Treads Utility Improved Heat Sink Device Improved Heat Sink Storage High-capacity Storage Unit Weapon Assault Rifle Energy Gun Particle Gun Ballistic Gun Assault Rifle Build | -11 -10 -9 ------- Run | Yrd Mat Mat Slots Evolved 2 | . . 2 Power . | . . . Propulsion 1 | . . 1 Utility 1 | . . 1 Weapon . | . . . Parts Attached 14 | 6 7 1 Power 4 | 1 3 . Engine 4 | 1 3 . Core . | . . . Reactor . | . . . Propulsion 2 | 2 . . Treads 2 | 2 . . Leg . | . . . Wheel . | . . . Hover . | . . . Flight . | . . . Utility 3 | 1 2 . Device 1 | . 1 . Storage 2 | 1 1 . Processor . | . . . Hackware . | . . . Protection . | . . . Artifact . | . . . Weapon 5 | 2 2 1 Energy Gun 2 | 1 1 . Energy Cannon . | . . . Ballistic Gun 3 | 1 1 1 Ballistic Cannon . | . . . Launcher . | . . . Special Weapon . | . . . Impact Weapon . | . . . Slashing Weapon . | . . . Piercing Weapon . | . . . Special Melee Weapon . | . . . Unidentified Prototypes . | . . . Parts Lost 3 | . 1 2 Power 1 | . . 1 Propulsion 1 | . . 1 Utility . | . . . Weapon 1 | . 1 . Highest Loss Streak 1 | . 1 1 To Critical Strikes . | . . . Average Backups 10 | 2 10 13 Power . | . 1 1 Propulsion 2 | 1 2 2 Utility 1 | . 1 2 Weapon 6 | . 6 8 Tool/Special . | . . . Unused Backups 13 | . . 13 Power 1 | . . 1 Propulsion 3 | . . 3 Utility 2 | . . 2 Weapon 7 | . . 7 Tool/Special . | . . . Average Slot Usage (%) 94 | . 97 75 Engine 13 | . 14 11 Treads 27 | . 27 20 Device 11 | . 11 11 Storage 13 | . 14 11 Energy Gun 13 | . 14 5 Ballistic Gun 14 | . 13 16 Peak Build Rating 11 | 6 11 11 Average Rating 9 | 4 10 10 On Entrance 5 | . 6 11 Avg Prop Armor Cover (%) . | . . . Naked Turns . | . . . Heaviest Build 51 | 11 51 51 Greatest Support 40 | 40 40 40 Greatest Overweight (x) 2 | . 1 2 Average Overweight (x) . | . . 1 Largest Inventory Capacity 20 | 8 20 20 Average Capacity 17 | 7 17 20 Most Carried 14 | 4 14 14 Average Carried 10 | 2 10 13 Final Capacity 20 | 8 20 20 Final Carried 14 | 4 13 14 Class Distribution -------------------- 100% | Mutant Dominant Class ---------------- Mutant | -10/Materials Mutant | -9/Materials Resources | -11 -10 -9 ----------- Run | Yrd Mat Mat Matter Collected 573 | 266 232 75 Remotely . | . . . Salvage Created 929 | 90 650 189 Parts 51 | 2 41 8 Haulers Intercepted 1 | . . 1 Recyclers Shooed . | . . . Parts Field Recycled . | . . . Retrieved Matter . | . . . Parts Self-Destructed . | . . . Prevented . | . . . Parts Restored . | . . . Kills | -11 -10 -9 ------- Run | Yrd Mat Mat Combat Hostiles Destroyed 18 | . 15 3 Guns 18 | . 15 3 Classes Destroyed 7 | 1 4 2 Worker 1 | . . 1 Hauler 1 | . . 1 Recycler 2 | 1 1 . Mechanic 1 | . 1 . Watcher 1 | . 1 . Swarmer 1 | . 1 . Grunt 17 | . 14 3 Best Kill Streak 3 | 1 3 2 Combat Bots Only 3 | . 3 1 Max Kills in Single Turn 1 | 1 1 1 Gunslinging . | . . . Exploded . | . . . Melee . | . . . Uniques/NPCs Destroyed . | . . . Combat | -11 -10 -9 -------- Run | Yrd Mat Mat Hostile Shots Fired 110 | . 68 42 Missed 35 | . 19 16 Hits 75 | . 49 26 Projectile 75 | . 49 26 Critical Strikes 1 | . 1 . Damage Taken 975 | . 629 346 Core 195 | . 96 99 Absorbed by Shields . | . . . Regen/Repaired (Parts) 84 | . 84 . Core Remaining (%) 80 | 100 61 . Volleys Fired 93 | 2 65 26 Largest 2 | 2 2 2 Hottest 85 | 60 85 40 Shots Fired 183 | 4 127 52 Gun 183 | 4 127 52 Cannon . | . . . Launcher . | . . . Special . | . . . Kinetic 119 | 2 65 52 Thermal 64 | 2 62 . Explosive . | . . . Electromagnetic . | . . . Robot Hit Streak 10 | 4 10 8 Robot Miss Streak 4 | . 4 2 Penetration Max . | . . . Secondary Targets 1 | . . 1 Max Gunslinging Chain 1 | . . 1 Shots Hit Robots 125 | 4 85 36 Core Hits 49 | 2 37 10 Critical Kills . | . . . Critical Parts Destroyed . | . . . Critical Strikes 2 | . 2 . Burn 2 | . 2 . Melee Attacks . | . . . Impact . | . . . Slashing . | . . . Piercing . | . . . Sneak Attacks . | . . . Combat Hostiles . | . . . Follow-up Attacks . | . . . Damage Inflicted 1641 | 51 1133 457 Guns 1633 | 51 1125 457 Cannons . | . . . Explosions . | . . . Melee . | . . . Ramming 8 | . 8 . Kinetic 1123 | 29 637 457 Thermal 510 | 22 488 . Explosive . | . . . Electromagnetic . | . . . Impact . | . . . Slashing . | . . . Piercing . | . . . Highest Corruption . | . . . Average Corruption . | . . . Corruption Purged . | . . . Corruption Blocked . | . . . Overload Shots . | . . . Overflow Damage . | . . . Projectiles . | . . . Explosions . | . . . Melee . | . . . Knockbacks . | . . . Impact . | . . . Kinetic . | . . . Secondary . | . . . Self-Inflicted Damage . | . . . Shots . | . . . Rammed 5 | . 5 . Targets Rammed 5 | . 5 . Kicked . | . . . Crushed . | . . . Highest Temperature 99 | . 99 . Average Temperature 44 | . 44 . Received Heat Transfer 429 | . 306 123 Siege Activations . | . . . Martial Activations . | . . . Shielding Activations . | . . . Robots Disrupted . | . . . Combat Hostiles . | . . . Robots Corrupted . | . . . Combat Hostiles . | . . . Parts Fried . | . . . Impact Corruptions . | . . . Robots Melted . | . . . Combat Hostiles . | . . . Parts Melted . | . . . Heat Transferred 1387 | 50 1337 . Parts Sabotaged . | . . . Parts Stolen . | . . . Parts Stripped . | . . . Power Chain Reactions . | . . . Alert | -11 -10 -9 ------- Run | Yrd Mat Mat Maximum Alert Level . | . . . Low Security (%) 100 | 100 100 100 Level 1 . | . . . Level 2 . | . . . Level 3 . | . . . Level 4 . | . . . Level 5 . | . . . High Security . | . . . Max Security . | . . . Peak Influence 105 | 5 105 38 Initial 11 | . . 11 Average 22 | . 25 10 Influence Increases 561 | 5 468 88 Destroy 0b10 Robot/C 360 | . 300 60 Destroy 0b10 Robot/NC 30 | 5 15 10 Destroy Leader 84 | . 82 2 Successful Hack 25 | . 25 . Disable Machine 15 | . 15 . Destroy Structure 2 | . 1 1 Lose Combat Pursuer 45 | . 30 15 Influence Decreases 543 | 5 439 99 Entered New Map 18 | . . 18 Time Decay 489 | 5 423 61 Lost Part 30 | . 10 20 Purge Threat 6 | . 6 . Squads Dispatched 6 | . 6 . Investigation 4 | . 4 . Extermination . | . . . Reinforcement 2 | . 2 . Assault . | . . . Garrison . | . . . Intercept . | . . . Searches Triggered . | . . . Construction Impeded . | . . . Haulers Reinforced . | . . . Active Scanning Responses . | . . . Cargo Convoy Interrupts . | . . . Stealth | -11 -10 -9 --------- Run | Yrd Mat Mat Distress Signals . | . . . Communications Jammed . | . . . Distress Signals . | . . . Times Spotted 41 | . 36 5 Peak Tracking Total 6 | . 6 2 Tactical Retreats 2 | . 1 1 Traps | -11 -10 -9 ------- Run | Yrd Mat Mat Traps Triggered 4 | . 4 . Indirectly . | . . . Trap Hack Attempts . | . . . Triggered . | . . . Disarmed . | . . . Reprogrammed . | . . . Reused . | . . . Traps Extracted . | . . . Installed . | . . . Triggered . | . . . Machines | -11 -10 -9 ---------- Run | Yrd Mat Mat Machines Disabled 1 | . 1 . Max in Single Turn 1 | . 1 . Machines Repaired . | . . . Machines Dismantled . | . . . Machines Sabotaged . | . . . Overloaded Fab Kills . | . . . Hacking | -11 -10 -9 --------- Run | Yrd Mat Mat Machines Accessed 7 | . 7 . Terminals 6 | . 6 . Fabricators . | . . . Repair Stations 1 | . 1 . Recycling Units . | . . . Scanalyzers . | . . . Garrison Access . | . . . Total Hacks 23 | . 23 . Successful 9 | . 9 . Failed 14 | . 14 . Catastrophic 2 | . 2 . Database Lockouts . | . . . Manual 17 | . 17 . Terminals 19 | . 19 . Fabricators . | . . . Repair Stations 4 | . 4 . Recycling Units . | . . . Scanalyzers . | . . . Garrison Access . | . . . Terminal Hacks 2 | . 2 . Robot Analysis 1 | . 1 . Unreport Threat 1 | . 1 . Fabricator Hacks . | . . . Repair Station Hacks 2 | . 2 . Scan Component 1 | . 1 . Repair 1 | . 1 . Recycling Unit Hacks . | . . . Scanalyzer . | . . . Garrison Access Hacks . | . . . Unauthorized Hacks 5 | . 5 . Terminals 5 | . 5 . Skim 5 | . 5 . Fabricators . | . . . Repair Stations . | . . . Recycling Units . | . . . Scanalyzers . | . . . Garrison Access . | . . . Data Cores Recovered . | . . . Used . | . . . Hacking Detections 7 | . 7 . Full Trace Events 1 | . 1 . Feedback Events . | . . . Feedback Blocked . | . . . Robot Schematics Acquired . | . . . Robots Built . | . . . Authchips . | . . . Time . | . . . Total Robot Build Rating . | . . . Part Schematics Acquired . | . . . Parts Built . | . . . Authchips . | . . . Time . | . . . Total Part Build Rating . | . . . Part Studies Acquired . | . . . Parts Repaired 1 | . 1 . Time 26 | . 26 . Parts Recycled . | . . . Recycled Matter . | . . . Retrieved Matter . | . . . Retrieved Components . | . . . Parts Scanalyzed . | . . . Part Schematics Acquired . | . . . Parts Damaged . | . . . Bothacking | -11 -10 -9 ------------ Run | Yrd Mat Mat Used RIF Installer . | . . . Robots Hacked . | . . . Non-combat . | . . . Combat . | . . . Robot Hacks Applied . | . . . Relay Couplers Released . | . . . Fabnet Peak Effective % . | . . . Robots Rewired . | . . . Allies Hacked . | . . . Hacks Repelled . | . . . Allies | -11 -10 -9 -------- Run | Yrd Mat Mat Total Allies . | . . . Largest Group . | . . . Highest-Rated Group . | . . . Highest-Rated Ally . | . . . Total Orders . | . . . Ally Attacks . | . . . Total Damage . | . . . Kills . | . . . Allies Corrupted . | . . . Allies Melted . | . . . Intel | -11 -10 -9 ------- Run | Yrd Mat Mat Active Infowar (turns) . | . . . Robot Analysis Total 1 | . 1 . Derelict Logs Recovered . | . . . Drone Launches . | . . . Drone Recoveries . | . . . Exploration | -11 -10 -9 ------------- Run | Yrd Mat Mat Turns Passed 2278 | 81 1969 228 Spaces Moved 874 | 41 775 58 Core 3 | 3 . . Treads 871 | 38 775 58 Legs . | . . . Wheels . | . . . Hover . | . . . Flight . | . . . Fastest Speed 50 | 50 160 240 Average Speed 216 | 151 218 241 Slowest Speed 320 | 160 240 320 Overloaded Moves . | . . . Propulsion Burnouts . | . . . Robots Hopped . | . . . Potential Cave-ins . | . . . Cave-ins Triggered . | . . . Exploration Rate (%) 36 | 4 97 9 Regions Visited 2 Branch Regions . Pre-discovered Areas . | . . . Known Exits Taken . | . . . Unknown Exits Taken 2 | 1 1 . Scrap Searched . | . . . Spaces Dug . | . . . Terrain Destroyed . | . . . Melee . | . . . Projectile . | . . . AOE . | . . . Terrain Rammed . | . . . Walls Destroyed . | . . . Machines Disabled . | . . . Actions | -11 -10 -9 --------- Run | Yrd Mat Mat Total 1064 | 53 918 93 Wait 58 | 1 50 7 Move 872 | 40 774 58 Hop . | . . . Pick Up 16 | 4 11 1 Fast Attach 8 | 6 2 . Attach 1 | . 1 . Detach . | . . . Swap 6 | . 5 1 Drop 5 | . 5 . Fire 93 | 2 65 26 Melee . | . . . Ram . | . . . Kick . | . . . Crush 5 | . 5 . Escape Stasis . | . . . Rewire . | . . . Trap . | . . . Miscellaneous . | . . . Route ------- -11/Scrapyard -10/Materials (discovered 4 exits: [*Mat x3] / [*Min]) -9/Materials (discovered 1 exit: [*Min]) History --------- Turn | Location | Event 31 | -11/Scrapyard | Discovered new exit (range 15) 82 | -11/Scrapyard | Entered Materials 189 | -10/Materials | Discovered new exit (range 16) 283 | -10/Materials | Discovered new exit (range 7) 303 | -10/Materials | Build established: Mutant 987 | -10/Materials | Repaired Lgt. Treads 1319 | -10/Materials | Discovered new exit (range 15) 1684 | -10/Materials | Discovered new exit (range 12) 2051 | -10/Materials | Entered another Materials area 2051 | -9/Materials | Evolved 2 slots: Propulsion x1, Utility x1 2218 | -9/Materials | Discovered new exit (range 16) 2279 | -9/Materials | Self-destructed Last Messages --------------- PARAMETERS=PROPULSION+1,UTILITY+1 LOCATION=UNKNOWN GOAL=ESCAPE 02187_ G-34 Mercenary destroyed. 02195_ Acquired Aluminum Leg. 02198_ Acquired 44 matter. 02210_ G-34 Mercenary destroyed. 02213_ Acquired 31 matter. 02218_ EXIT=FOUND 02234_ A-02 Transporter destroyed. 02235_ Lgt. Treads destroyed. 02241_ K-01 Serf collects debris. 02258_ G-34 Mercenary destroyed. 02258_ Switching to secondary target: Y-45 Defender. 02262_ K-01 Serf collects debris. 02264_ K-01 Serf destroyed. 02264_ A-02 Transporter suffers critical hit (Burn). 02267_ K-01 Serf collects debris. 02273_ Ion Engine destroyed. 02274_ K-01 Serf collects debris. Map ----- +----------------------------------------------------+ | ??????????????# # #??????? | | ??????????????# + #??????? | | ??????????????# # #??????? | | ??????????????# #####+#####??????? | | ?????????????## ????# #??????????? | | ?????????????# #### ###????????? | | ?????????????# #????????? | | ?????????????# #????????? | | ?????????????# #????????? | | ?????????????# ###### #????????? | | ?????????????#####??????# #????????? | | ????????????????????????# #????????? | | ????????????????????????# #????????? | | ????????????????????????# #????????? | | ????????????????????????# #????????? | | ??????????????????????###+####?????? | | ??????????????????????# #?????? | | ??????????????????????# """ #?????? | | ??????????????????????# """ #?????? | | ??????????????????????# """ #?????? | | ??????????????????????# #?????? | | ??????????? ##+###+???# !#?????? | | ?????????? ########;###+#?? | | ?????????? * ^ k[[==[a*=! #?? | | ?????????? Y %^ [= !*= #?? | | ???????????????##= [= %@ #### #?? | | ????????????????# #??? #?? | | ??????????????#"" a #???? #?? | | ??????????????#"T ^ #?????#?? | | ??????????????#"" #???????? | | ??????????????### """ #???????? | | ????????????????# """ ##???????? | | ????????????????# """ #????????? | | ????????????????# #????????? | | ????????????????# ?? #????????? | | ????????????????#????## #????????? | | ?????????????????????? ????????? | | ?????????????????????? ????????? | | ?????????????????????? ????????? | | ?????????????????????? < ????????? | | ?????????????????????? ????????? | | ??????????????????????" "????????? | | ???????????????????????????????????? | | ???????????????????????????????????? | | ???????????????????????????????????? | | ???????????????????????????????????? | | ???????????????????????????????????? | | ???????????????????????????????????? | | ???????????????????????????????????? | | ???????????????????????????????????? | +----------------------------------------------------+ Best States ------------- Heat Dissipation 42 Energy Generation 10 Energy Capacity 250 Matter Stores 300 Matter Capacity 300 Sight Range 16 Terrain Scan Density 10 Evasion (%) 40 Recoil Reduction 2 Item Schematics ----------------- None Robot Schematics ------------------ None Fabricated ------------ Nothing Repaired ---------- Lgt. Treads | 40% | -10/Materials Studied --------- None Alien Tech Used ----------------- None Achievements -------------- None Challenges ------------ None Game ------ Seed ThiefCooledSegregator Manual? 0 Play Time 00:07:44 Cumulative 950.5 hours Start 2026.03.22 @ 09:38:51 End 2026.03.22 @ 09:45:44 Sessions 1 Manual Loads 0 Difficulty Rogue Special Mode None Game No. 1623 Rogue 1623 Adventurer 0 Explorer 0 Win Type - Total 93 Types 55/1/16/15/4/0/0/1/0/1 Lore% 93 Gallery% 80 Achievement% 64 Wizard Run 0 Options --------- Layout 0 ASCII 1 Keyboard 0 Movement Numpad Keybinds 1 Fullscreen 2 Font 18/SmallcapsGlow Map View 76x50 Zoom Use 0% Tactical HUD 1 Map Filters NONE Filters NONE Steam 1 RUN: 4f4d2f06-5fdd-419a-a2e4-bbfb547161fb